fUSD/lending_fUSD_20260218
["ID","MTS","AMOUNT","RATE_DAILY","PERIOD"]
[405957817,1771453842742,-700.0,0.000178,6]
[405957818,1771453842751,-500.0,0.00017808,2]
[405957819,1771453842760,-500.0,0.00017808,2]
[405957820,1771453842771,-500.0,0.00017808,2]
[405957821,1771453842780,-500.0,0.00017808,2]
[405957822,1771453842790,-500.0,0.00017808,2]
[405957823,1771453842801,-500.0,0.00017808,2]
[405957824,1771453842811,-500.0,0.00017808,2]
[405957825,1771453842824,-500.0,0.00017808,2]
[405957826,1771453842848,-500.0,0.00017808,2]
[405957827,1771453842858,-308.00803312,0.00017808,2]
[405957828,1771453842867,-500.0,0.00017808,2]
[405957829,1771453842876,-500.0,0.00017808,2]
[405957830,1771453842885,-500.0,0.00017808,2]
[405957831,1771453842894,-800.0,0.00017808,2]
[405957832,1771453842903,-700.0,0.000179,6]
[405957833,1771453842913,-2306.78429015,0.000179,2]
[405957834,1771453842922,-403.24562454,0.000179,2]
[405957835,1771453842933,-41155.84305179,0.000179,2]
[405957836,1771453842943,-168.0,0.00017913,2]
[405957837,1771453842952,-245.86778969,0.00017973,2]
[405957838,1771453842963,-168.63570163,0.00017973,2]
[405957839,1771453842974,-184.10682969,0.00017973,2]
[405957840,1771453842983,-162.86870142,0.00017973,2]
[405957841,1771453842992,-503.24422827,0.00017973,2]
[405957842,1771453843001,-500.0,0.00017973,2]
[405957843,1771453843010,-307.32831336,0.00017973,2]
[405957844,1771453843020,-166.81542431,0.00017973,2]
[405957845,1771453843029,-500.27840167,0.00017973,2]
[405957846,1771453843038,-502.89755561,0.00017973,2]
[405957847,1771453843047,-500.0,0.00017973,2]
[405957848,1771453843056,-500.0,0.00017973,2]
[405957849,1771453843066,-500.0,0.00017973,2]
[405957850,1771453843075,-500.0,0.00017973,2]
[405957851,1771453843089,-165.19851393,0.00017973,2]
[405957852,1771453843098,-500.0,0.00017973,2]
[405957853,1771453843107,-164.39891665,0.00017973,2]
[405957854,1771453843116,-167.33946284,0.00017973,2]
[405957855,1771453843126,-500.0,0.00017973,2]
[405957856,1771453843137,-500.0,0.00017973,2]
[405957857,1771453843148,-500.0,0.00017973,2]
[405957858,1771453843160,-500.0,0.00017973,2]
[405957859,1771453843170,-500.0,0.00017973,2]
[405957860,1771453843181,-502.35320902,0.00017973,2]
[405957861,1771453843190,-500.0,0.00017973,2]
[405957862,1771453843199,-500.0,0.00017973,2]
[405957863,1771453843210,-500.0,0.00017973,2]
[405957864,1771453843220,-500.0,0.00017973,2]
[405957865,1771453843230,-500.0,0.00017973,2]
[405957866,1771453843242,-500.0,0.00017973,2]
[405957867,1771453843250,-263.72762291,0.00017973,2]
[405957868,1771453843260,-500.0,0.00017973,2]
[405957869,1771453843269,-500.0,0.00017973,2]
[405957870,1771453843279,-500.87268816,0.00017973,2]
[405957871,1771453843289,-493.23699365,0.00017973,2]
[405957872,1771453843299,-500.0,0.00017973,2]
[405957873,1771453843310,-1149.27516242,0.0001799,2]
[405957874,1771453843320,-151.0,0.00017997,2]
[405957875,1771453843331,-500.0,0.00017999,2]
[405957877,1771453843341,-500.0,0.00017999,2]
[405957878,1771453843350,-500.0,0.00017999,2]
[405957879,1771453843360,-500.0,0.00017999,2]
[405957880,1771453843371,-500.0,0.00017999,2]
[405957881,1771453843381,-500.0,0.00017999,2]
[405957882,1771453843390,-500.0,0.00017999,2]
[405957883,1771453843399,-500.0,0.00017999,2]
[405957884,1771453843408,-500.0,0.00017999,2]
[405957885,1771453843417,-500.0,0.00017999,2]
[405957886,1771453843426,-500.0,0.00017999,2]
[405957887,1771453843435,-500.0,0.00017999,2]
[405957888,1771453843446,-500.0,0.00017999,2]
[405957889,1771453843456,-152.1,0.00017999,2]
[405957890,1771453843466,-500.0,0.00017999,2]
[405957891,1771453843475,-500.0,0.00017999,2]
[405957892,1771453843486,-635.95417002,0.00017999,2]
[405957893,1771453843498,-216.12,0.00017999,2]
[405957894,1771453843507,-500.0,0.00017999,2]
[405957895,1771453843517,-500.0,0.00017999,2]
[405957896,1771453843527,-500.0,0.00017999,2]
[405957897,1771453843536,-500.0,0.00017999,2]
[405957898,1771453843545,-620.1235705,0.00017999,2]
[405957900,1771453843554,-591.1,0.00017999,2]
[405957901,1771453843563,-591.1,0.00017999,2]
[405957903,1771453843571,-591.1,0.00017999,2]
[405957905,1771453843580,-591.1,0.00017999,2]
[405957907,1771453843590,-591.1,0.00017999,2]
[405957908,1771453843600,-591.1,0.00017999,2]
[405957909,1771453843610,-591.1,0.00017999,2]
[405957910,1771453843619,-591.1,0.00017999,2]
[405957911,1771453843629,-591.1,0.00017999,2]
[405957912,1771453843639,-591.1,0.00017999,2]
[405957913,1771453843649,-591.1,0.00017999,2]
[405957914,1771453843659,-591.1,0.00017999,2]
[405957915,1771453843669,-591.1,0.00017999,2]
[405957916,1771453843680,-591.1,0.00017999,2]
[405957917,1771453843691,-591.10047002,0.00017999,2]
[405957918,1771453843701,-726.78,0.00017999,2]
[405957919,1771453843710,-726.78,0.00017999,2]
[405957920,1771453843719,-726.78,0.00017999,2]
[405957921,1771453843733,-726.78,0.00017999,2]
[405957922,1771453843745,-726.78,0.00017999,2]
[405957923,1771453843753,-726.78,0.00017999,2]
[405957924,1771453843763,-726.78,0.00017999,2]
[405957925,1771453843773,-726.78,0.00017999,2]
[405957926,1771453843782,-726.78,0.00017999,2]
[405957927,1771453843791,-726.78,0.00017999,2]
[405957928,1771453843802,-726.78,0.00017999,2]
[405957929,1771453843811,-726.78,0.00017999,2]
[405957930,1771453843821,-726.78,0.00017999,2]
[405957931,1771453843831,-726.78,0.00017999,2]
[405957932,1771453843839,-726.86,0.00017999,2]
[405957933,1771453843850,-300.0,0.00017999,2]
[405957934,1771453843861,-300.0,0.00017999,2]
[405957935,1771453843870,-300.0,0.00017999,2]
[405957936,1771453843880,-195.05,0.00018,7]
[405957937,1771453843889,-4094591.86785334,0.00018,2]
[405957938,1771453843906,-1538.38209799,0.00018,2]
[405957939,1771453843918,-552.67041026,0.00018,2]
[405957940,1771453843937,-617.0,0.00017054,2]
[405957941,1771453843947,-678221.06760146,0.00018,2]
[405957942,1771453843959,-987.83690987,0.00018,2]
[405957943,1771453844022,-4116.95632493,0.000179,2]
[405957944,1771453844031,-423.04367507,0.00018,2]
[405957980,1771455031760,-644.0,7.697e-05,2]
[405957981,1771455031769,-212.63891136,7.697e-05,2]
[405957982,1771455031781,-987.36108864,7.697e-05,2]
[405957983,1771455031790,-300.0,7.697e-05,2]
[405957984,1771455031800,-300.0,7.697e-05,2]
[405957985,1771455031809,-215.0,7.697e-05,2]
[405957986,1771455031818,-427.35670883,7.698e-05,2]
[405957987,1771455031830,-814.47785732,7.698e-05,2]
[405957988,1771455031845,-3639.61909237,7.698e-05,2]
[405957989,1771455031856,-1554.81131123,7.698e-05,2]
[405957990,1771455031867,-117180.20798383,7.698e-05,2]
[405957991,1771455031877,-22797.60567979,7.698e-05,2]
[405957992,1771455031920,-776.97,7.698e-05,2]
[405957993,1771455031932,-1292.2457146,7.698e-05,2]
[405957995,1771455037810,-3751.93058712,7.698e-05,2]
[405957996,1771455037878,-6870.9272291,7.698e-05,2]
[405957998,1771455039967,-332.4896,7.698e-05,2]
[405957999,1771455039979,-344.57381638,7.698e-05,2]
[405958000,1771455040203,-1001.19884408,7.698e-05,2]
[405958001,1771455040214,-272.24010028,7.698e-05,2]
[405958002,1771455040225,-20000.35339197,7.698e-05,2]
[405958003,1771455040236,-3318942.9920831,7.698e-05,2]
[405958004,1771455040252,-400.0,7.7e-05,2]
[405958005,1771455040263,-170.40667766,7.7e-05,2]
[405958006,1771455040274,-2607.343,7.74e-05,2]
[405958007,1771455040284,-184.237,7.74e-05,2]
[405958008,1771455040296,-60683.8746,7.798e-05,2]
[405958009,1771455040307,-800.0,7.8e-05,2]
[405958010,1771455040317,-1200.0,7.9e-05,2]
[405958011,1771455040327,-1600.0,8e-05,2]
[405958012,1771455040336,-250.0,8.467e-05,2]
[405958013,1771455040346,-5000.0,8.47e-05,2]
[405958014,1771455040355,-5000.0,8.47e-05,2]
[405958015,1771455040366,-5000.0,8.47e-05,2]
[405958016,1771455040375,-5000.0,8.47e-05,2]
[405958017,1771455040385,-5000.0,8.47e-05,2]
[405958018,1771455040394,-250.0,8.47e-05,2]
[405958019,1771455040403,-168.05,9.372e-05,2]
[405958020,1771455040412,-19816.62112641,9.408e-05,2]
[405958021,1771455040423,-200.0,9.847e-05,2]
[405958022,1771455040432,-500.0,0.0001,2]
[405958023,1771455040442,-151.0,0.0001,2]
[405958024,1771455040452,-151.0,0.0001,2]
[405958025,1771455040465,-151.0,0.0001,2]
[405958026,1771455040475,-500.0,0.0001,2]
[405958027,1771455040484,-500.0,0.0001,2]
[405958028,1771455040494,-500.0,0.0001,2]
[405958029,1771455040506,-500.0,0.0001,2]
[405958030,1771455040515,-500.0,0.0001,2]
[405958031,1771455040525,-500.0,0.0001,2]
[405958032,1771455040536,-500.0,0.0001,2]
[405958033,1771455040546,-151.0,0.0001,2]
[405958034,1771455040556,-500.0,0.0001,2]
[405958035,1771455040565,-151.0,0.0001,2]
[405958036,1771455040575,-151.0,0.0001,2]
[405958037,1771455040584,-151.0,0.0001,2]
[405958038,1771455040593,-151.0,0.0001,2]
[405958039,1771455040602,-500.0,0.0001,2]
[405958040,1771455040612,-151.0,0.0001,2]
[405958041,1771455040621,-500.0,0.0001,2]
[405958042,1771455040630,-151.0,0.0001,2]
[405958043,1771455040639,-500.0,0.0001,2]
[405958044,1771455040649,-151.0,0.0001,2]
[405958045,1771455040659,-151.0,0.0001,2]
[405958046,1771455040669,-151.0,0.0001,2]
[405958047,1771455040679,-151.0,0.0001,2]
[405958048,1771455040688,-151.0,0.0001,2]
[405958049,1771455040697,-151.0,0.0001,2]
[405958050,1771455040707,-151.0,0.0001,2]
[405958051,1771455040718,-500.0,0.0001,2]
[405958052,1771455040728,-151.0,0.0001,2]
[405958053,1771455040738,-151.0,0.0001,2]
[405958054,1771455040747,-500.0,0.0001,2]
[405958055,1771455040757,-151.0,0.0001,2]
[405958056,1771455040766,-151.0,0.0001,2]
[405958057,1771455040775,-500.0,0.0001,2]
[405958058,1771455040784,-151.0,0.0001,2]
[405958059,1771455040794,-151.0,0.0001,2]
[405958060,1771455040803,-500.0,0.0001,2]
[405958061,1771455040812,-151.0,0.0001,2]
[405958062,1771455040821,-151.0,0.0001,2]
[405958063,1771455040830,-500.0,0.0001,2]
[405958064,1771455040839,-151.0,0.0001,2]
[405958065,1771455040849,-151.0,0.0001,2]
[405958066,1771455040858,-500.0,0.0001,2]
[405958067,1771455040867,-151.0,0.0001,2]
[405958068,1771455040876,-151.0,0.0001,2]
[405958069,1771455040886,-500.0,0.0001,2]
[405958070,1771455040895,-151.0,0.0001,2]
[405958071,1771455040908,-500.0,0.0001,2]
[405958072,1771455040918,-151.0,0.0001,2]
[405958073,1771455040927,-500.0,0.0001,2]
[405958074,1771455040938,-500.0,0.0001,2]
[405958075,1771455040948,-500.0,0.0001,2]
[405958076,1771455040959,-1149.27516242,0.0001,2]
[405958077,1771455040969,-1149.27516242,0.0001,2]
[405958078,1771455040980,-250.0,0.0001017,2]
[405958079,1771455040989,-1000.0,0.00010223,2]
[405958080,1771455041000,-500.0,0.00010274,2]
[405958081,1771455041009,-394.45999999,0.00010548,2]
[405958082,1771455041018,-2000.0,0.000109,3]
[405958083,1771455041030,-2306.78429023,0.00011099,2]
[405958084,1771455041040,-2306.78429015,0.00011099,2]
[405958085,1771455041050,-2306.78429015,0.00011099,2]
[405958086,1771455041060,-2306.78429015,0.00011099,2]
[405958087,1771455041071,-41256.98007246,0.00011099,2]
[405958088,1771455041081,-41256.98007245,0.00011099,2]
[405958089,1771455041091,-41256.98007245,0.00011099,2]
[405958090,1771455041102,-41256.98007245,0.00011099,2]
[405958091,1771455041111,-150.0,0.00011112,7]
[405958092,1771455041121,-150.99,0.00011281,2]
[405958093,1771455041130,-9999.99,0.00011281,2]
[405958094,1771455041141,-166.66,0.00011379,2]
[405958095,1771455041151,-345.83178008,0.00011488,2]
[405958096,1771455041160,-1000.0,0.00011501,2]
[405958097,1771455041170,-166.66,0.00011618,2]
[405958098,1771455041179,-166.66,0.00011858,2]
[405958099,1771455041189,-166.66,0.00012097,2]
[405958100,1771455041199,-41256.98007245,0.00012178,2]
[405958101,1771455041208,-2306.78429015,0.00012232,2]
[405958102,1771455041218,-166.66,0.00012337,2]
[405958103,1771455041228,-251.66990433,0.00012486,2]
[405958104,1771455041237,-166.66,0.00012576,2]
[405958105,1771455041253,-1000.0,0.00012779,2]
[405958106,1771455041262,-41256.98007245,0.00013322,2]
[405958107,1771455041271,-2306.78429015,0.00013366,2]
[405958108,1771455041280,-500.0,0.00013698,2]
[405958109,1771455041290,-500.0,0.00013698,2]
[405958110,1771455041299,-500.0,0.00013698,2]
[405958111,1771455041309,-500.0,0.00013698,2]
[405958112,1771455041318,-500.0,0.00013698,2]
[405958113,1771455041328,-500.0,0.00013698,2]
[405958114,1771455041338,-500.0,0.00013698,2]
[405958115,1771455041347,-500.0,0.00013698,2]
[405958116,1771455041358,-500.0,0.00013698,2]
[405958117,1771455041368,-500.0,0.00013698,2]
[405958118,1771455041379,-500.0,0.00013698,2]
[405958119,1771455041389,-635.95417002,0.00013698,2]
[405958120,1771455041399,-500.0,0.00013698,2]
[405958121,1771455041408,-500.0,0.00013698,2]
[405958122,1771455041417,-500.0,0.00013698,2]
[405958123,1771455041427,-500.0,0.00013698,2]
[405958124,1771455041437,-500.0,0.00013698,2]
[405958125,1771455041446,-500.0,0.00013698,2]
[405958126,1771455041456,-500.0,0.00013698,2]
[405958127,1771455041469,-500.0,0.00013698,2]
[405958128,1771455041478,-500.0,0.00013698,2]
[405958129,1771455041488,-216.12,0.00013698,2]
[405958130,1771455041499,-500.0,0.00013698,2]
[405958131,1771455041509,-551.5455423,0.00013698,2]
[405958132,1771455041518,-500.0,0.00013698,2]
[405958133,1771455041528,-500.0,0.00013698,2]
[405958134,1771455041537,-500.0,0.00013698,2]
[405958135,1771455041547,-500.0,0.00013698,2]
[405958136,1771455041556,-500.0,0.00013698,2]
[405958137,1771455041565,-500.0,0.00013698,2]
[405958138,1771455041575,-500.0,0.00013698,2]
[405958139,1771455041584,-500.0,0.00013698,2]
[405958140,1771455041593,-500.0,0.00013698,2]
[405958141,1771455041603,-500.0,0.00013698,2]
[405958142,1771455041612,-500.0,0.00013698,2]
[405958143,1771455041622,-500.0,0.00013698,2]
[405958144,1771455041631,-500.0,0.00013698,2]
[405958145,1771455041640,-620.1235705,0.00013698,2]
[405958146,1771455041650,-500.0,0.00013698,2]
[405958147,1771455041664,-464.29440353,0.00013698,2]
[405958148,1771455041674,-591.1,0.00013698,2]
[405958149,1771455041684,-591.1,0.00013698,2]
[405958150,1771455041694,-591.1,0.00013698,2]
[405958151,1771455041703,-591.1,0.00013698,2]
[405958152,1771455041713,-591.1,0.00013698,2]
[405958153,1771455041723,-591.1,0.00013698,2]
[405958154,1771455041733,-591.1,0.00013698,2]
[405958155,1771455041743,-591.1,0.00013698,2]
[405958156,1771455041752,-591.1,0.00013698,2]
[405958157,1771455041762,-591.1,0.00013698,2]
[405958158,1771455041772,-591.1,0.00013698,2]
[405958159,1771455041781,-591.1,0.00013698,2]
[405958160,1771455041791,-591.1,0.00013698,2]
[405958161,1771455041800,-591.1,0.00013698,2]
[405958162,1771455041810,-591.1,0.00013698,2]
[405958163,1771455041820,-591.1,0.00013698,2]
[405958164,1771455041829,-761.18,0.00013698,2]
[405958165,1771455041838,-761.18,0.00013698,2]
[405958166,1771455041847,-761.18,0.00013698,2]
[405958167,1771455041857,-761.18,0.00013698,2]
[405958168,1771455041866,-761.18,0.00013698,2]
[405958169,1771455041876,-761.18,0.00013698,2]
[405958170,1771455041885,-761.18,0.00013698,2]
[405958171,1771455041895,-761.18,0.00013698,2]
[405958172,1771455041904,-761.18,0.00013698,2]
[405958173,1771455041913,-761.18,0.00013698,2]
[405958174,1771455041923,-761.18,0.00013698,2]
[405958175,1771455041932,-761.18,0.00013698,2]
[405958176,1771455041941,-761.18,0.00013698,2]
[405958177,1771455041951,-761.18,0.00013698,2]
[405958178,1771455041960,-761.18,0.00013698,2]
[405958179,1771455041969,-761.18,0.00013698,2]
[405958180,1771455041979,-500.0,0.00013698,2]
[405958181,1771455041988,-500.0,0.00013698,2]
[405958182,1771455041998,-500.0,0.00013698,2]
[405958183,1771455042008,-500.0,0.00013698,2]
[405958184,1771455042018,-500.0,0.00013698,2]
[405958185,1771455042028,-500.0,0.00013698,2]
[405958186,1771455042037,-500.0,0.00013698,2]
[405958187,1771455042047,-500.0,0.00013698,2]
[405958188,1771455042056,-500.0,0.00013698,2]
[405958189,1771455042066,-500.0,0.00013698,2]
[405958190,1771455042279,-500.0,0.00013698,2]
[405958191,1771455042290,-500.0,0.00013698,2]
[405958192,1771455042300,-500.0,0.00013698,2]
[405958193,1771455042310,-500.0,0.00013698,2]
[405958194,1771455042319,-500.0,0.00013698,2]
[405958195,1771455042329,-500.0,0.00013698,2]
[405958196,1771455042338,-372.32,0.00013698,2]
[405958197,1771455042352,-500.0,0.00013698,2]
[405958198,1771455042363,-500.0,0.00013698,2]
[405958199,1771455042372,-500.0,0.00013698,2]
[405958200,1771455042382,-500.0,0.00013698,2]
[405958201,1771455042392,-500.0,0.00013698,2]
[405958202,1771455042402,-500.0,0.00013698,2]
[405958203,1771455042412,-500.0,0.00013698,2]
[405958204,1771455042421,-500.0,0.00013698,2]
[405958205,1771455042431,-500.0,0.00013698,2]
[405958206,1771455042440,-500.0,0.00013698,2]
[405958207,1771455042449,-500.0,0.00013698,2]
[405958208,1771455042462,-500.0,0.00013698,2]
[405958209,1771455042473,-500.0,0.00013698,2]
[405958210,1771455042482,-500.0,0.00013698,2]
[405958211,1771455042492,-500.0,0.00013698,2]
[405958212,1771455042503,-500.0,0.00013698,2]
[405958213,1771455042513,-500.0,0.00013698,2]
[405958214,1771455042523,-200.0,0.00013699,2]
[405958215,1771455042533,-1338.0,0.00014054,2]
[405958216,1771455042544,-1164.0,0.00014054,2]
[405958217,1771455042554,-617.0,0.00014054,2]
[405958218,1771455042564,-3492.0,0.00014054,2]
[405958219,1771455042573,-267.79,0.00014054,2]
[405958220,1771455042583,-1275.0,0.00014054,2]
[405958221,1771455042592,-1218.539,0.00014054,2]
[405958222,1771455042602,-215.0,0.00014054,2]
[405958223,1771455042611,-268.0,0.00014054,2]
[405958224,1771455042620,-200.0,0.00014054,2]
[405958225,1771455042630,-919.0,0.00014054,2]
[405958226,1771455042639,-150.0,0.00014054,2]
[405958227,1771455042648,-172.182,0.00014054,2]
[405958228,1771455042658,-150.0,0.00014054,2]
[405958229,1771455042667,-5973.0,0.00014054,2]
[405958230,1771455042676,-412.0,0.00014054,2]
[405958231,1771455042686,-1000.0,0.00014057,2]
[405958232,1771455042695,-168.05,0.00014058,2]
[405958233,1771455042705,-160.0,0.00014159,2]
[405958234,1771455042715,-173.62051493,0.00014159,2]
[405958235,1771455042724,-41256.98007245,0.00014467,2]
[405958236,1771455042734,-2306.78429015,0.00014499,2]
[405958237,1771455042744,-500.0,0.00014644,2]
[405958238,1771455042755,-127294.76,0.00014644,2]
[405958239,1771455042764,-155.57771791,0.000149,2]
[405958240,1771455042775,-1513.22,0.0001531,2]
[405958241,1771455042785,-1000.0,0.00015335,2]
[405958242,1771455042795,-214.6612564,0.00015449,2]
[405958243,1771455042807,-3240.0,0.00015605,2]
[405958244,1771455042818,-41256.98007245,0.00015611,2]
[405958245,1771455042828,-2306.78429015,0.00015633,2]
[405958246,1771455042837,-418.75,0.00015729,2]
[405958247,1771455042847,-248.592671,0.00015816,7]
[405958248,1771455042856,-506.0,0.0001605,2]
[405958249,1771455042866,-9999.99,0.00016116,2]
[405958250,1771455042877,-500.0,0.00016291,2]
[405958251,1771455042887,-500.0,0.00016291,2]
[405958252,1771455042897,-500.0,0.00016291,2]
[405958253,1771455042907,-500.0,0.00016291,2]
[405958254,1771455042917,-500.0,0.00016291,2]
[405958255,1771455042928,-500.0,0.00016291,2]
[405958256,1771455042938,-573.98994496,0.00016291,2]
[405958257,1771455042949,-174.61919141,0.00016291,2]
[405958258,1771455042958,-578.20924308,0.00016291,2]
[405958259,1771455042968,-162.380719,0.00016291,2]
[405958260,1771455042977,-693.3919763,0.00016291,2]
[405958261,1771455042987,-277.35679052,0.00016291,2]
[405958262,1771455042997,-719.04747942,0.00016346,2]
[405958263,1771455043008,-51925.0,0.0001638,2]
[405958264,1771455043017,-2836.0,0.000164,2]
[405958265,1771455043027,-745.65223616,0.00016401,2]
[405958266,1771455043037,-773.2413689,0.00016456,2]
[405958267,1771455043048,-801.85129955,0.00016511,2]
[405958268,1771455043058,-831.51979763,0.00016566,2]
[405958269,1771455043068,-862.28603014,0.00016621,2]
[405958270,1771455043079,-894.19061326,0.00016676,2]
[405958271,1771455043091,-927.27566595,0.00016731,2]
[405958272,1771455043101,-41256.98007245,0.00016756,2]
[405958273,1771455043114,-2306.78429015,0.00016766,2]
[405958274,1771455043125,-961.58486559,0.00016786,2]
[405958275,1771455043136,-181.08010149,0.00016839,2]
[405958276,1771455043146,-287.61899177,0.00016839,2]
[405958277,1771455043157,-997.16350561,0.00016841,2]
[405958278,1771455043167,-300.0,0.00016919,2]
[405958279,1771455043177,-500.0,0.00016919,2]
[405958280,1771455043187,-300.0,0.00016919,2]
[405958281,1771455043197,-300.0,0.00016919,2]
[405958282,1771455043206,-666.0,0.00016919,2]
[405958283,1771455043215,-51925.0,0.0001692,2]
[405958284,1771455043225,-591.1,0.00016999,2]
[405958285,1771455043236,-761.18,0.00016999,2]
[405958286,1771455043245,-506.0,0.00017005,2]
[405958287,1771455043254,-1338.0,0.00017054,2]
[405958288,1771455043264,-1164.0,0.00017054,2]
[405958289,1771455043274,-617.0,0.00017054,2]
[405958290,1771455043285,-3492.0,0.00017054,2]
[405958291,1771455043296,-150.0,0.00017054,2]
[405958292,1771455043306,-1275.0,0.00017054,2]
[405958293,1771455043317,-1209.0,0.00017054,2]
[405958294,1771455043326,-150.0,0.00017054,2]
[405958295,1771455043336,-150.0,0.00017054,2]
[405958296,1771455043347,-150.0,0.00017054,2]
[405958297,1771455043358,-919.0,0.00017054,2]
[405958298,1771455043368,-150.0,0.00017054,2]
[405958299,1771455043378,-150.0,0.00017054,2]
[405958300,1771455043387,-150.0,0.00017054,2]
[405958301,1771455043397,-5973.0,0.00017054,2]
[405958302,1771455043406,-412.0,0.00017054,2]
[405958303,1771455043415,-150.0,0.00017379,2]
[405958304,1771455043425,-187.78006525,0.00017387,2]
[405958305,1771455043434,-218.52356619,0.00017387,2]
[405958306,1771455043443,-300.0,0.00017459,2]
[405958307,1771455043454,-300.0,0.00017459,2]
[405958308,1771455043466,-300.0,0.00017459,2]
[405958309,1771455043476,-51925.0,0.0001746,2]
[405958310,1771455043486,-253.0,0.00017479,2]
[405958311,1771455043495,-5888.0,0.00017642,2]
[405958312,1771455043506,-168.3888056,0.0001766,2]
[405958313,1771455043515,-297.0,0.00017685,2]
[405958314,1771455043524,-400.0,0.000177,6]
[405958315,1771455043534,-400.0,0.000178,6]
[405958316,1771455043544,-591.1,0.00017807,2]
[405958317,1771455043553,-761.18,0.00017807,2]
[405958318,1771455043563,-800.0,0.00017808,2]
[405958319,1771455043572,-374.0,0.00017861,2]
[405958320,1771455043581,-300.0,0.00017899,2]
[405958321,1771455043591,-400.0,0.000179,6]
[405958322,1771455043602,-2306.78429015,0.000179,2]
[405958323,1771455043612,-41256.98007245,0.000179,2]
[405958324,1771455043621,-194.72792766,0.00017935,2]
[405958325,1771455043630,-506.0,0.00017959,3]
[405958326,1771455043639,-245.86778969,0.00017973,2]
[405958327,1771455043649,-168.63570163,0.00017973,2]
[405958328,1771455043660,-184.10682969,0.00017973,2]
[405958329,1771455043671,-307.32831336,0.00017973,2]
[405958330,1771455043682,-500.0,0.00017973,2]
[405958331,1771455043691,-500.27840167,0.00017973,2]
[405958332,1771455043701,-500.0,0.00017973,2]
[405958333,1771455043711,-502.89755561,0.00017973,2]
[405958334,1771455043720,-503.24422827,0.00017973,2]
[405958335,1771455043729,-166.81542431,0.00017973,2]
[405958336,1771455043738,-500.0,0.00017973,2]
[405958337,1771455043747,-162.86870142,0.00017973,2]
[405958339,1771455043757,-165.19851393,0.00017973,2]
[405958341,1771455043767,-500.0,0.00017973,2]
[405958343,1771455043776,-500.0,0.00017973,2]
[405958344,1771455043786,-500.0,0.00017973,2]
[405958345,1771455043795,-500.0,0.00017973,2]
[405958346,1771455043804,-500.0,0.00017973,2]
[405958347,1771455043813,-167.33946284,0.00017973,2]
[405958349,1771455043822,-164.39891665,0.00017973,2]
[405958351,1771455043831,-500.0,0.00017973,2]
[405958353,1771455043840,-500.0,0.00017973,2]
[405958355,1771455043849,-230.21037703,0.00017973,2]
[405958357,1771455043859,-500.0,0.00017973,2]
[405958359,1771455043868,-500.0,0.00017973,2]
[405958362,1771455043877,-500.0,0.00017973,2]
[405958365,1771455043889,-500.0,0.00017973,2]
[405958367,1771455043899,-500.0,0.00017973,2]
[405958368,1771455043908,-500.0,0.00017973,2]
[405958369,1771455043918,-500.0,0.00017973,2]
[405958370,1771455043927,-500.87268816,0.00017973,2]
[405958371,1771455043936,-493.23699365,0.00017973,2]
[405958372,1771455043945,-500.0,0.00017973,2]